bitfinex/quotes_SOLUSD_20240915
["timestamp","ask_amount","ask_price","bid_price","bid_amount"]
[1726395446461,20.12549,136.52,136.47,5.81098667]
[1726395446653,20.12549,136.52,136.46,6.328]
[1726395446862,27.45249,136.48,136.47,5.81098553]
[1726395447173,27.45249,136.48,136.43,5.81293351]
[1726395447174,43.902374,136.45,136.43,5.81293351]
[1726395447469,43.902374,136.45,136.41,0.2509397]
[1726395447669,43.902374,136.45,136.42,5.81303131]
[1726395447875,43.902374,136.45,136.41,0.2509397]
[1726395448059,43.902374,136.45,136.42,5.81314087]
[1726395448246,43.902374,136.45,136.41,0.2509397]
[1726395448456,43.902374,136.45,136.42,5.81314201]
[1726395448659,43.902374,136.45,136.41,0.2509397]
[1726395448857,43.902374,136.45,136.42,5.81314087]
[1726395449056,43.902374,136.45,136.41,0.2509397]
[1726395449256,43.902374,136.45,136.42,5.81314087]
[1726395449462,43.902374,136.45,136.41,0.2509397]
[1726395449665,43.902374,136.45,136.42,5.81314201]
[1726395449863,43.902374,136.45,136.41,0.2509397]
[1726395450073,43.902374,136.45,136.42,5.81311214]
[1726395450388,43.902374,136.45,136.41,0.2509397]
[1726395450574,43.902374,136.45,136.42,5.81311328]
[1726395450772,43.902374,136.45,136.41,0.2509397]
[1726395450972,43.902374,136.45,136.42,5.81311214]
[1726395451177,43.902374,136.45,136.41,0.2509397]
[1726395451362,43.902374,136.45,136.42,5.81314201]
[1726395451560,43.902374,136.45,136.41,0.2509397]
[1726395451862,43.902374,136.45,136.42,5.81314201]
[1726395452063,43.902374,136.45,136.41,0.2509397]
[1726395452270,43.902374,136.45,136.42,5.81314201]
[1726395452469,43.902374,136.45,136.41,0.2509397]
[1726395452670,43.902374,136.45,136.42,5.81314087]
[1726395452891,43.902374,136.45,136.41,0.2509397]
[1726395453185,43.902374,136.45,136.42,5.81314087]
[1726395453481,43.902374,136.45,136.41,0.2509397]
[1726395453662,43.902374,136.45,136.42,5.81314201]
[1726395453862,43.902374,136.45,136.41,0.2509397]
[1726395454062,43.902374,136.45,136.42,5.81314087]
[1726395454266,43.902374,136.45,136.41,0.2509397]
[1726395454687,0.12549,136.44,136.41,0.2509397]
[1726395455866,7.6348229,136.46,136.41,0.2509397]
[1726395456179,7.3271,136.48,136.41,0.2509397]
[1726395457091,43.902374,136.47,136.41,0.2509397]
[1726395457389,0.12549,136.46,136.41,0.2509397]
[1726395458998,43.902374,136.47,136.41,0.2509397]
[1726395463803,20.0,136.47,136.41,0.2509397]
[1726395464000,24.027864,136.48,136.41,22.9750397]
[1726395464174,23.776884,136.49,136.41,22.9750397]
[1726395464381,22.65758633,136.5,136.41,22.9750397]
[1726395465389,20.0,136.49,136.41,22.9750397]
[1726395469582,20.12549,136.5,136.41,22.9750397]
[1726395470203,23.776884,136.49,136.41,22.9750397]
[1726395470415,20.12549,136.48,136.41,22.9750397]
[1726395471115,20.0,136.5,136.41,22.9750397]
[1726395471416,0.12549,136.49,136.41,22.9750397]
[1726395474921,20.0,136.5,136.41,22.9750397]
[1726395476382,20.0,136.48,136.41,22.9750397]
[1726395476587,23.776884,136.47,136.41,22.9750397]
[1726395478913,20.0,136.46,136.41,22.9750397]
[1726395479096,27.3283,136.46,136.41,22.9750397]
[1726395480006,20.0,136.44,136.41,0.2509397]
[1726395480885,27.3294,136.44,136.41,0.2509397]
[1726395481081,20.0,136.44,136.42,6.3732]
[1726395481299,7.63454991,136.47,136.42,43.54119925]
[1726395481508,7.3244,136.53,136.43,28.43127691]
[1726395481704,7.3244,136.53,136.43,33.31650993]
[1726395482308,7.325,136.52,136.43,0.12549]
[1726395482494,7.325,136.52,136.43,30.12549]
[1726395482693,7.325,136.52,136.43,30.0]
[1726395482899,0.12549,136.51,136.43,30.0]
[1726395483403,20.12549,136.51,136.46,7.328]
[1726395483609,20.12549,136.51,136.46,37.328]
[1726395490727,20.12549,136.51,136.47,7.3275]
[1726395490916,20.12549,136.51,136.47,37.3275]
[1726395491321,20.12549,136.51,136.47,7.3275]
[1726395493522,0.12549,136.5,136.42,22.7241]
[1726395493722,23.902374,136.5,136.42,22.7241]
[1726395493926,20.12549,136.49,136.42,22.7241]
[1726395494830,20.12549,136.49,136.44,7.3288]
[1726395497534,27.45209,136.49,136.44,7.3288]
[1726395497714,27.45209,136.49,136.42,22.7241]
[1726395497920,27.45209,136.49,136.42,16.3509]
[1726395497921,20.0,136.47,136.42,16.3509]
[1726395498625,20.0,136.47,136.41,0.2509397]
[1726395499917,20.0,136.48,136.41,0.2509397]
[1726395500734,20.0,136.48,136.44,7.329]
[1726395500942,20.0,136.48,136.43,7.3296]
[1726395501437,0.12549,136.47,136.43,7.3296]
[1726395509120,0.12549,136.47,136.44,7.3291]
[1726395510140,0.12549,136.47,136.41,0.2509397]
[1726395510315,7.3286,136.46,136.41,0.2509397]
[1726395510634,20.12549,136.45,136.41,0.2509397]
[1726395511431,20.12549,136.45,136.41,7.5816397]
[1726395513541,20.12549,136.45,136.41,0.2509397]
[1726395514428,20.12549,136.45,136.41,7.5816397]
[1726395515050,0.12549,136.45,136.41,7.5816397]
[1726395515225,0.25098,136.45,136.41,7.5816397]
[1726395516352,0.12549,136.44,136.41,0.2509397]
[1726395516753,20.12549,136.44,136.41,0.2509397]
[1726395517330,0.12549,136.44,136.41,0.2509397]
[1726395518043,20.12549,136.45,136.41,7.5816397]
[1726395518557,0.12549,136.45,136.41,7.5816397]
[1726395518855,0.37647,136.46,136.41,7.5816397]
[1726395522658,20.0,136.45,136.41,0.2509397]
[1726395522864,0.25098,136.44,136.41,0.2509397]
[1726395525862,20.0,136.45,136.41,7.5817397]
[1726395526553,20.0,136.45,136.41,0.2509397]
[1726395526855,20.0,136.48,136.44,7.3292]
[1726395527030,20.0,136.48,136.41,0.2509397]
[1726395527235,20.0,136.48,136.41,15.6008397]
[1726395528047,20.0,136.48,136.43,7.3296]
[1726395528459,0.12549,136.47,136.43,7.3296]
[1726395534341,0.25098,136.47,136.43,7.3296]
[1726395535559,0.12549,136.47,136.43,7.3296]
[1726395535762,20.0,136.48,136.41,15.6008397]
[1726395535964,20.0,136.48,136.42,5.81331424]
[1726395536145,20.0,136.48,136.41,15.6008397]
[1726395536460,20.0,136.48,136.45,7.3282]
[1726395536660,20.0,136.48,136.46,7.3281]
[1726395536838,20.0,136.51,136.46,7.3281]
[1726395537657,20.0,136.51,136.41,15.6008397]
[1726395537658,20.0,136.51,136.47,7.3275]
[1726395538438,20.0,136.51,136.46,7.328]
[1726395544451,20.0,136.51,136.41,15.6008397]
[1726395544452,0.25098,136.5,136.45,7.3286]
[1726395544655,20.12549,136.49,136.45,7.3286]
[1726395545256,0.12549,136.49,136.46,7.328]
[1726395545460,0.12549,136.5,136.46,7.328]
[1726395547674,20.0,136.51,136.47,7.3275]
[1726395548353,0.12549,136.5,136.46,7.328]
[1726395559678,0.12549,136.5,136.45,7.3286]
[1726395560700,0.12549,136.5,136.46,7.328]
[1726395564898,0.25098,136.5,136.45,7.3285]
[1726395566406,0.12549,136.5,136.46,7.328]
[1726395566575,0.25098,136.5,136.46,7.328]
[1726395568883,0.12549,136.5,136.46,7.328]
[1726395569284,0.12549,136.5,136.47,7.3274]
[1726395569979,0.12549,136.5,136.46,7.328]
[1726395573493,20.0,136.51,136.46,7.328]
[1726395576023,20.0,136.51,136.41,15.6008397]
[1726395576186,20.0,136.49,136.45,7.3285]
[1726395576906,20.25098,136.5,136.45,7.3285]
[1726395577282,20.25098,136.5,136.46,5.81253083]
[1726395577503,20.25098,136.5,136.45,7.3285]
[1726395577687,20.25098,136.5,136.46,5.8125297]
[1726395577888,20.25098,136.5,136.45,7.3285]
[1726395578589,24.05206934,136.5,136.45,7.3285]
[1726395579196,24.05206934,136.5,136.46,5.8126466]
[1726395579406,24.05206934,136.5,136.45,7.3285]
[1726395579605,24.05206934,136.5,136.46,5.8126466]
[1726395579924,24.05206934,136.5,136.45,7.3285]
[1726395580420,24.05206934,136.5,136.46,11.62529954]
[1726395580618,24.05206934,136.5,136.46,5.81264977]
[1726395584215,24.05206934,136.5,136.47,5.81241709]
[1726395584396,24.05206934,136.5,136.46,5.81264977]
[1726395586606,23.92657934,136.5,136.46,13.14064977]
[1726395588221,23.92657934,136.5,136.46,7.328]
[1726395589518,23.80108934,136.5,136.46,7.328]
[1726395594728,3.80108934,136.49,136.46,7.328]
[1726395594928,3.80108934,136.48,136.46,7.328]
[1726395595618,3.80108934,136.49,136.46,7.328]
[1726395596114,23.80108934,136.5,136.46,7.328]
[1726395596317,23.80108934,136.5,136.47,7.3276]
[1726395596926,23.80108934,136.5,136.45,7.3281]
[1726395597304,31.12718934,136.5,136.45,7.3281]
[1726395599809,3.80108934,136.49,136.45,7.3281]
[1726395602413,31.12718934,136.5,136.45,7.3281]
[1726395603327,3.80108934,136.49,136.45,7.3281]
[1726395603528,31.12718934,136.5,136.45,7.3281]
[1726395606408,31.12718934,136.5,136.41,15.6008397]
[1726395606409,7.45199,136.49,136.44,7.3291]
[1726395608232,11.25307934,136.49,136.44,7.3291]
[1726395610933,11.25307934,136.49,136.41,15.6008397]
[1726395610934,7.3271,136.48,136.43,7.3296]
[1726395611121,0.25098,136.47,136.41,0.2509397]
[1726395611321,4.05206934,136.47,136.41,0.2509397]
[1726395611531,11.37976934,136.47,136.41,7.5812397]
[1726395611717,20.0,136.46,136.41,7.5812397]
[1726395614631,27.3287,136.45,136.41,0.2509397]
[1726395614837,0.12549,136.44,136.41,0.2509397]
[1726395615137,0.12549,136.46,136.41,7.5817397]
[1726395615318,31.355964,136.46,136.41,7.5817397]
[1726395615518,20.0,136.45,136.41,0.2509397]
[1726395615742,0.12549,136.44,136.41,0.2509397]
[1726395617015,0.25098,136.44,136.41,0.2509397]
[1726395623539,0.12549,136.44,136.41,0.2509397]
[1726395628342,7.3299,136.43,136.41,0.2509397]
[1726395628550,20.0,136.42,136.41,0.2509397]
[1726395629841,20.12549,136.42,136.41,0.2509397]
[1726395630038,20.37647,136.42,136.41,0.2509397]
[1726395630737,20.25098,136.42,136.41,0.2509397]
[1726395639366,20.25098,136.42,136.37,7.5837397]
[1726395639367,20.0,136.4,136.37,0.2509397]
[1726395639739,0.12549,136.39,136.37,0.2509397]
[1726395639940,0.37647,136.39,136.37,0.2509397]
[1726395640236,24.153354,136.39,136.37,0.2509397]
[1726395640453,20.0,136.38,136.37,0.2509397]
[1726395640652,24.027864,136.37,136.32,6.8370794]
[1726395640852,24.027864,136.37,136.29,15.8688397]
[1726395640853,0.12549,136.35,136.3,7.3367]
[1726395641065,24.027864,136.35,136.29,0.2509397]
[1726395641268,0.12549,136.34,136.29,0.2509397]
[1726395642463,0.12549,136.34,136.31,7.3362]
[1726395643179,0.12549,136.34,136.32,7.3354]
[1726395643334,20.0,136.37,136.33,7.335]
[1726395643540,0.12549,136.36,136.33,7.335]
[1726395643741,0.25098,136.36,136.33,7.335]
[1726395643943,24.027864,136.36,136.32,7.3354]
[1726395644455,20.0,136.35,136.32,7.3354]
[1726395645848,20.0,136.35,136.33,7.335]
[1726395648853,7.79855269,136.36,136.33,7.335]
[1726395649278,20.0,136.35,136.33,7.335]
[1726395653107,7.67306269,136.36,136.3,0.12549]
[1726395653488,7.67306269,136.36,136.35,7.334]
[1726395653690,6.0072,136.41,136.36,7.3331]
[1726395653884,6.0072,136.41,136.3,0.12549]
[1726395653885,6.0072,136.41,136.37,7.3328]
[1726395654979,20.0,136.4,136.37,7.3328]
[1726395662277,20.0,136.41,136.33,0.12549]
[1726395662482,20.0,136.41,136.38,7.332]
[1726395668307,20.0,136.41,136.37,7.3329]
[1726395668501,0.12549,136.4,136.37,7.3329]
[1726395671089,0.25098,136.4,136.36,7.3335]
[1726395671292,20.0,136.39,136.35,7.3336]
[1726395672312,20.12549,136.4,136.33,5.8165412]
[1726395672490,20.12549,136.4,136.32,22.4581]
[1726395672808,20.12549,136.4,136.33,5.81654345]
[1726395673122,20.12549,136.4,136.32,22.4581]
[1726395673286,20.12549,136.4,136.37,7.3327]
[1726395673709,20.12549,136.4,136.36,7.3334]
[1726395675790,20.12549,136.4,136.37,7.3328]
[1726395677328,20.12549,136.4,136.36,7.3334]
[1726395682524,20.12549,136.4,136.35,7.3339]
[1726395682712,0.25098,136.39,136.35,7.3339]
[1726395682908,0.12549,136.38,136.35,7.3339]
[1726395683141,20.12549,136.38,136.36,7.3335]
[1726395683809,20.12549,136.38,136.31,6.31176051]
[1726395683810,20.12549,136.38,136.35,7.3339]
[1726395686911,20.12549,136.38,136.34,7.3345]
[1726395687505,20.12549,136.38,136.35,7.3339]
[1726395689107,20.0,136.38,136.35,7.3339]
[1726395689303,20.0,136.38,136.36,7.3334]
[1726395696018,7.66434436,136.41,136.37,13.14916342]
[1726395696216,20.12549,136.4,136.37,7.3329]
[1726395696929,20.12549,136.4,136.38,7.3322]
[1726395697111,20.0,136.4,136.38,7.3322]
[1726395697316,20.0,136.41,136.38,7.3322]
[1726395704649,23.80108934,136.41,136.38,7.3322]
[1726395704950,20.0,136.41,136.38,7.3322]
[1726395705546,23.80108934,136.41,136.38,7.3322]
[1726395706457,23.80108934,136.41,136.37,7.3328]
[1726395707451,0.12549,136.4,136.37,7.3328]
[1726395709134,0.25098,136.4,136.36,7.3334]
[1726395709350,0.25098,136.4,136.37,5.81612052]
[1726395709553,0.25098,136.4,136.36,7.3334]
[1726395709762,0.25098,136.4,136.37,5.81612052]
[1726395710062,0.25098,136.4,136.36,7.3334]
[1726395710230,0.25098,136.4,136.37,5.81632057]
[1726395710427,0.25098,136.4,136.36,7.3334]
[1726395710630,0.25098,136.4,136.37,5.81640744]
[1726395710831,0.25098,136.4,136.36,7.3334]
[1726395711057,0.25098,136.4,136.37,5.81635027]
[1726395711357,0.25098,136.4,136.36,7.3334]
[1726395711656,0.25098,136.4,136.37,5.81635027]
[1726395711958,0.25098,136.4,136.36,7.3334]
[1726395712161,0.25098,136.4,136.37,5.81637886]
[1726395712351,0.25098,136.4,136.36,7.3334]
[1726395712552,0.25098,136.4,136.37,5.81637773]
[1726395712736,0.25098,136.4,136.36,7.3334]
[1726395713240,0.25098,136.4,136.37,5.81635027]
[1726395713445,0.25098,136.4,136.36,7.3334]
[1726395713737,0.25098,136.4,136.37,5.81635027]
[1726395713956,0.25098,136.4,136.36,7.3334]
[1726395714163,0.25098,136.4,136.37,5.81634915]
[1726395714462,0.25098,136.4,136.36,7.3334]
[1726395715442,0.25098,136.4,136.37,5.81640159]
[1726395715647,0.25098,136.4,136.36,7.3334]
[1726395716757,0.25098,136.4,136.37,5.81639945]
[1726395716966,0.25098,136.4,136.36,7.3334]
[1726395717159,0.25098,136.4,136.37,5.81639945]
[1726395717466,0.25098,136.4,136.36,7.3334]
[1726395717666,0.25098,136.4,136.37,5.81639945]
[1726395717870,0.25098,136.4,136.36,7.3334]
[1726395718376,0.25098,136.4,136.37,7.3329]
[1726395718670,4.05206934,136.4,136.37,7.3329]
[1726395719171,7.66544548,136.39,136.37,7.3329]
[1726395720143,4.05206934,136.4,136.37,7.3329]
[1726395721367,3.92657934,136.4,136.37,7.3329]
[1726395721555,0.12549,136.4,136.37,7.3329]
[1726395721950,31.46644002,136.41,136.37,7.3329]
[1726395722352,27.66535068,136.41,136.37,7.3329]
[1726395725967,27.66535068,136.41,136.38,13.1483418]
[1726395726180,27.66535068,136.41,136.38,7.3323]
[1726395731080,27.66535068,136.41,136.37,7.3328]
[1726395732984,0.25098,136.4,136.37,7.3328]
[1726395733388,27.66535068,136.41,136.33,6.1233]
[1726395733556,27.66535068,136.41,136.34,5.81623262]
[1726395733753,27.66535068,136.41,136.35,5.81623262]
[1726395733970,27.66535068,136.41,136.36,5.81623262]
[1726395734167,27.66535068,136.41,136.37,5.81623262]
[1726395734483,27.66535068,136.41,136.38,13.14853262]
[1726395734675,27.66535068,136.41,136.38,7.3323]
[1726395737297,0.12549,136.4,136.33,6.1233]
[1726395737593,0.25098,136.4,136.34,5.8162983]
[1726395737792,0.25098,136.4,136.37,7.3327]
[1726395739590,0.25098,136.4,136.36,7.3334]
[1726395739778,0.25098,136.4,136.37,5.81654658]
[1726395739972,0.25098,136.4,136.36,7.3334]
[1726395740310,0.25098,136.4,136.37,5.81643113]
[1726395740477,0.25098,136.4,136.36,7.3334]
[1726395740668,0.25098,136.4,136.37,5.81643225]
[1726395740979,0.25098,136.4,136.37,7.3329]
[1726395743678,0.12549,136.4,136.38,7.3324]
[1726395743877,31.46644002,136.41,136.38,7.3324]
[1726395750601,27.66535068,136.41,136.38,7.3324]
[1726395750798,31.46644002,136.41,136.38,7.3324]
[1726395752081,0.12549,136.4,136.38,7.3324]
[1726395755123,31.46644002,136.41,136.38,7.3324]
[1726395759322,0.12549,136.4,136.37,7.3328]
[1726395761219,3.92657934,136.4,136.37,7.3328]
[1726395763824,0.12549,136.4,136.37,7.3328]
[1726395765219,3.92657934,136.4,136.37,7.3328]
[1726395766616,0.12549,136.4,136.37,7.3328]
[1726395766824,3.92657934,136.4,136.37,7.3328]
[1726395769118,0.12549,136.4,136.32,24.99109797]
[1726395769337,31.46644002,136.41,136.33,5.81632331]
[1726395769623,31.46644002,136.41,136.34,5.81632331]
[1726395769828,31.46644002,136.41,136.35,5.81632331]
[1726395770122,31.46644002,136.41,136.38,7.3323]
[1726395772009,0.12549,136.4,136.38,7.3323]
[1726395772410,0.25098,136.4,136.38,7.3323]
[1726395773114,0.25098,136.4,136.37,7.3328]
[1726395773617,4.05206934,136.4,136.37,7.3328]
[1726395775930,3.92657934,136.4,136.38,7.3324]
[1726395779331,3.80108934,136.4,136.38,7.3324]
[1726395780028,31.46644002,136.41,136.38,7.3324]
[1726395785133,31.46644002,136.41,136.37,7.3329]
[1726395785333,0.12549,136.4,136.37,7.3329]
[1726395785639,0.12549,136.4,136.38,5.81629149]
[1726395785845,31.46644002,136.41,136.38,7.332]
[1726395787133,31.46644002,136.41,136.37,7.3328]
[1726395787441,31.46644002,136.41,136.38,5.81616909]
[1726395787620,31.46644002,136.41,136.37,7.3328]
[1726395787821,31.46644002,136.41,136.38,5.81617021]
[1726395788148,31.46644002,136.41,136.37,7.3328]
[1726395788438,31.46644002,136.41,136.38,5.81619767]
[1726395788741,31.46644002,136.41,136.37,7.3328]
[1726395789137,31.46644002,136.41,136.38,7.3322]
[1726395790026,31.46644002,136.41,136.4,7.3313]
[1726395790227,27.66535068,136.41,136.4,7.3313]
[1726395790437,20.0,136.41,136.4,7.3313]
[1726395795849,20.2509397,136.43,136.41,7.3305]
[1726395800341,20.2509397,136.43,136.42,7.3303]
[1726395815658,20.2509397,136.43,136.41,7.3307]
[1726395818363,20.2509397,136.43,136.4,7.3312]
[1726395821763,20.2509397,136.43,136.41,7.3307]
[1726395835072,20.2509397,136.43,136.4,7.3313]
[1726395848582,20.2509397,136.43,136.41,7.3307]
[1726395854202,20.2509397,136.43,136.39,7.3314]
[1726395854481,0.12549,136.42,136.4,5.81506216]
[1726395854696,20.0,136.4,136.32,15.013]
[1726395854998,0.12549,136.39,136.32,15.013]
[1726395855568,0.12549,136.39,136.35,7.3336]
[1726395856369,0.12549,136.39,136.36,7.3335]
[1726395856886,20.0,136.4,136.36,7.3335]
[1726395857589,0.12549,136.39,136.36,7.3335]
[1726395857886,20.0,136.4,136.36,7.3335]
[1726395861177,20.0,136.4,136.33,9.00239797]
[1726395861884,20.0,136.4,136.32,0.25098]
[1726395862298,20.0,136.4,136.38,7.3324]
[1726395865197,20.0,136.4,136.37,7.3328]
[1726395865699,20.0,136.4,136.38,7.3324]
[1726395867207,20.0,136.4,136.37,7.3329]
[1726395867897,27.63625179,136.4,136.35,7.3335]
[1726395868783,27.63625179,136.4,136.36,7.3333]
[1726395869289,27.63625179,136.4,136.37,7.3328]
[1726395872012,27.63625179,136.4,136.36,7.3333]
[1726395873812,0.25098,136.39,136.34,7.3343]
[1726395873987,31.485254,136.39,136.34,7.3343]
[1726395874188,20.0,136.38,136.34,7.3343]
[1726395874895,44.153354,136.39,136.34,7.3343]
[1726395875798,21.4236,136.38,136.34,7.3343]
[1726395875997,20.12549,136.37,136.34,7.3343]
[1726395876196,20.0,136.37,136.34,7.3343]
[1726395878201,27.64028647,136.37,136.34,7.3343]
[1726395883402,20.0,136.37,136.34,7.3343]
[1726395895807,29.06316948,136.38,136.35,7.334]
[1726395896021,20.0,136.37,136.34,7.3344]
[1726395900100,20.0,136.37,136.35,7.3339]
[1726395903116,20.0,136.37,136.34,7.3345]
[1726395907136,0.25098,136.36,136.33,7.335]
[1726395907429,0.25098,136.36,136.29,0.2509397]
[1726395907815,7.89106786,136.36,136.29,0.2509397]
[1726395908347,7.89106786,136.36,136.33,7.335]
[1726395908731,7.89106786,136.36,136.29,0.2509397]
[1726395909031,7.89106786,136.36,136.32,7.3351]
[1726395909408,20.0,136.35,136.32,7.3351]
[1726395914729,20.0,136.35,136.33,7.3351]
[1726395918449,20.0,136.35,136.3,3.8076512]
[1726395918634,20.0,136.35,136.31,5.73481817]
[1726395918808,20.0,136.35,136.32,5.73481817]
[1726395919008,20.0,136.35,136.33,5.73481817]
[1726395919232,20.0,136.35,136.29,0.2509397]
[1726395919416,20.0,136.35,136.3,9.54251838]
[1726395919618,20.0,136.35,136.31,5.73484349]
[1726395919824,7.89106786,136.36,136.32,5.73484349]
[1726395920035,20.12549,136.35,136.33,13.06974349]
[1726395920234,20.12549,136.35,136.33,7.3349]
[1726395922418,20.0,136.35,136.34,7.3346]
[1726395922627,20.0,136.35,136.34,13.06918272]
[1726395924035,27.64008786,136.36,136.35,7.334]
[1726395924248,20.0,136.36,136.35,7.334]
[1726395924434,20.0,136.36,136.35,13.06830647]
[1726395924748,20.0,136.37,136.34,7.3344]
[1726395925744,0.12549,136.36,136.34,7.3344]
[1726395927740,20.0,136.37,136.34,7.3344]
[1726395934455,20.0,136.37,136.33,7.335]
[1726395934653,23.80108934,136.37,136.33,7.335]
[1726395934856,0.12549,136.36,136.33,7.335]
[1726395935066,0.12549,136.36,136.34,5.73469475]
[1726395935267,0.12549,136.36,136.33,7.335]
[1726395935439,0.12549,136.36,136.34,5.73460748]
[1726395935764,0.12549,136.36,136.33,7.335]
[1726395936061,0.12549,136.36,136.34,5.7345515]
[1726395936240,20.0,136.37,136.34,7.3345]
[1726395936442,20.0,136.37,136.36,7.3335]
[1726395937843,7.63935568,136.38,136.37,7.3329]
[1726395938050,20.0,136.38,136.37,13.06685116]
[1726395938244,20.0,136.38,136.37,7.3329]
[1726395939249,20.0,136.38,136.37,13.0662445]
[1726395939444,20.0,136.38,136.37,7.3329]
[1726395940843,24.24772279,136.41,136.38,7.3324]
[1726395942570,20.0,136.4,136.38,7.3324]
[1726395944350,20.0,136.4,136.39,7.3319]
[1726395945447,20.2509397,136.43,136.4,7.3313]
[1726395946444,20.2509397,136.43,136.38,7.3319]
[1726395946649,0.12549,136.42,136.39,7.3318]
[1726395950053,0.25098,136.42,136.39,7.3318]
[1726395950246,0.37647,136.42,136.39,7.3318]
[1726395956059,20.0,136.41,136.39,7.3318]
[1726395963493,20.0,136.41,136.38,7.3323]
[1726395963992,0.12549,136.4,136.38,7.3323]
[1726395964171,0.25098,136.4,136.38,7.3323]
[1726395966485,0.12549,136.4,136.38,7.3323]
[1726395966797,0.25098,136.4,136.38,7.3323]
[1726395967610,0.25098,136.4,136.37,7.3329]
[1726395968088,0.25098,136.4,136.38,7.3324]
[1726395974190,0.12549,136.4,136.38,7.3324]
[1726395974388,20.0,136.41,136.38,7.3324]
[1726395974592,20.0,136.41,136.39,7.3316]
[1726395974797,0.25098,136.42,136.39,7.3316]
[1726395975299,27.88870335,136.43,136.4,7.3312]
[1726395983908,27.88870335,136.43,136.41,7.3307]
[1726395986909,27.88870335,136.43,136.42,7.3303]
[1726395987115,20.2509397,136.43,136.42,7.3303]
[1726395987313,0.2509397,136.43,136.42,7.3303]
[1726395999014,0.2509397,136.43,136.42,8.79601744]
[1726396001000,0.2509397,136.43,136.42,7.45579]
[1726396002416,0.2509397,136.43,136.42,7.3303]
[1726396004197,3.97e-05,136.43,136.42,13.92958]
[1726396004431,3.97e-05,136.43,136.42,14.05507]
[1726396005700,3.97e-05,136.43,136.42,15.52005742]
[1726396007411,3.97e-05,136.43,136.42,14.05507]
[1726396008798,0.2509397,136.47,136.46,7.3281]
[1726396009021,0.2509397,136.47,136.46,7.45359]
[1726396011324,0.2509397,136.47,136.46,7.57908]
[1726396014417,0.2509397,136.47,136.46,7.3281]
[1726396019637,0.2509397,136.47,136.46,7.45359]
[1726396020042,0.2509397,136.47,136.46,7.57908]
[1726396022039,0.2509397,136.47,136.46,7.70457]
[1726396027245,0.2509397,136.47,136.46,7.3281]
[1726396036877,0.2509397,136.47,136.45,7.3286]
[1726396037051,0.2509397,136.47,136.38,15.9405]
[1726396037242,16.4544,136.46,136.45,7.3285]
[1726396046466,20.0,136.45,136.37,9.00253863]
[1726396046667,20.0,136.45,136.36,16.74664709]
[1726396046865,20.0,136.45,136.43,7.3297]
[1726396049589,20.0,136.45,136.44,7.3292]
[1726396051366,20.0,136.45,136.37,3.80488658]
[1726396051367,20.0,136.45,136.43,7.3296]
[1726396052484,26.0088,136.45,136.42,7.3302]
[1726396052678,26.0088,136.45,136.43,7.3297]
[1726396053188,26.0088,136.45,136.36,10.11664709]
[1726396053404,26.0088,136.45,136.42,7.3297]
[1726396060592,26.0088,136.45,136.41,7.3307]
[1726396063190,20.0,136.42,136.34,9.00253863]
[1726396063381,20.0,136.42,136.4,7.3313]
[1726396063795,20.0,136.42,136.41,7.3308]
[1726396063998,20.0,136.43,136.41,7.3308]
[1726396068104,20.0,136.43,136.37,5.7317448]
[1726396068302,20.0,136.43,136.34,0.25098]
[1726396068484,20.0,136.43,136.35,5.85753294]
[1726396068803,20.0,136.43,136.36,5.73204294]
[1726396068984,20.0,136.43,136.37,5.73204294]
[1726396069179,20.0,136.43,136.35,0.12549]
[1726396069412,20.0,136.43,136.4,7.3313]
[1726396070591,20.0,136.43,136.41,7.3307]
[1726396071678,20.0,136.43,136.4,7.3312]
[1726396076306,20.0,136.43,136.35,0.12549]
[1726396076513,20.0,136.43,136.39,7.3315]
[1726396082605,27.65665936,136.43,136.39,7.3315]